Cogmind - Beta 14 @@@ ROGUE MODE // 2024.10.23 @ 19:51:37 Player: Udabudha Result: Destroyed by Proton Bomb Trap Performance ------------- Evolutions (2) 1000 Regions Visited (5) 1000 Robots Destroyed (20) 100 Value Destroyed (618) 618 Prototype IDs (3) 60 Alien Tech Used (0) 0 Bonus (0) 0 TOTAL SCORE: 2778 Bonus ------- None Cogmind --------- Core Integrity 0/550 Matter 300/300 Energy 99/100 System Corruption 1% Temperature Cool (0) Movement Core (200) Ox3 Location -8/Materials Parts ------- > --- POWER (2) -------- (None) > --- PROPULSION (3) --- (None) > --- UTILITY (3) ------ Medium Storage Unit > --- WEAPON (3) ------- (None) > --- INVENTORY (10) --- Improved Hover Unit Heat Sink Heat Sink Sensor Array Hardened Medium Armor Plating Light Assault Rifle Flak Cannon Grenade Launcher Grenade Launcher Plasma Cutter Peak State ------------ > --- POWER ------------ (None) > --- PROPULSION ------- Wheel Wheel Airjet > --- UTILITY ---------- Small Storage Unit Medium Storage Unit Experimental Sensor Array > --- WEAPON ----------- Particle Cannon Particle Cannon Flak Cannon > --- INVENTORY -------- Improved Hover Unit Heat Sink Heat Sink Sensor Array Hardened Medium Armor Plating Light Assault Rifle Flak Cannon Grenade Launcher Grenade Launcher Plasma Cutter [Rating: 24] Favorites ----------- Power Light Ion Engine Engine Light Ion Engine Propulsion Wheel Leg Aluminum Leg Wheel Wheel Hover Unit Improved Hover Unit Utility Small Storage Unit Device Experimental Sensor Array Storage Small Storage Unit Weapon Assault Rifle Energy Cannon Particle Cannon Ballistic Gun Assault Rifle Ballistic Cannon Flak Cannon Build | -11 -10 -10 -9 -9 -8 ------- Run | Yrd Mat Min Mat Min Mat Slots Evolved 4 | . . . 2 . 2 Power 1 | . . . 1 . . Propulsion 1 | . . . . . 1 Utility 1 | . . . . . 1 Weapon 1 | . . . 1 . . Parts Attached 22 | 7 1 . 6 4 4 Power 4 | 1 . . 2 1 . Engine 4 | 1 . . 2 1 . Core . | . . . . . . Reactor . | . . . . . . Propulsion 9 | 3 . . 2 3 1 Treads . | . . . . . . Leg 1 | 1 . . . . . Wheel 5 | 2 . . . 3 . Hover 3 | . . . 2 . 1 Flight . | . . . . . . Utility 3 | 1 1 . . . 1 Device 1 | . . . . . 1 Storage 2 | 1 1 . . . . Processor . | . . . . . . Hackware . | . . . . . . Protection . | . . . . . . Artifact . | . . . . . . Weapon 6 | 2 . . 2 . 2 Energy Gun . | . . . . . . Energy Cannon 3 | . . . 2 . 1 Ballistic Gun 2 | 2 . . . . . Ballistic Cannon 1 | . . . . . 1 Launcher . | . . . . . . Special Weapon . | . . . . . . Impact Weapon . | . . . . . . Slashing Weapon . | . . . . . . Piercing Weapon . | . . . . . . Special Melee Weapon . | . . . . . . Unidentified Prototypes 1 | . . . . . 1 Parts Lost 15 | . . . 6 1 8 Power 4 | . . . 3 . 1 Propulsion 5 | . . . 1 1 3 Utility 2 | . . . . . 2 Weapon 4 | . . . 2 . 2 Highest Loss Streak 7 | . . . 3 1 7 To Critical Strikes 1 | . . . . . 1 Average Slot Usage (%) 77 | . 92 100 87 67 47 Engine 9 | . 14 14 13 5 . Wheel 17 | . 28 28 16 7 10 Hover 3 | . . . 5 11 3 Device 1 | . . . . . 5 Storage 21 | . 20 28 22 22 15 Energy Cannon 10 | . . . 19 22 9 Ballistic Gun 13 | . 28 28 11 . . Peak Build Rating 24 | 6 8 9 14 11 24 Average Rating 10 | 3 7 8 11 10 13 On Entrance 7 | . 6 8 9 11 10 Naked Turns . | . . . . . . Heaviest Build 37 | 12 22 22 37 26 27 Greatest Support 20 | 20 20 20 20 20 20 Greatest Overweight (x) 8 | . 1 1 2 3 8 Average Overweight (x) . | . . 1 1 1 2 Largest Inventory Capacity 10 | 8 10 10 10 10 10 Average Capacity 9 | 6 8 10 10 10 10 Most Carried 10 | 6 9 10 10 10 10 Average Carried 8 | 3 7 9 8 8 9 Final Capacity 10 | 8 10 10 10 10 10 Final Carried 10 | 6 9 10 8 9 10 Class Distribution -------------------- 83% | Mutant 16% | Gunner Dominant Class ---------------- Mutant | -10/Materials Mutant | -10/Mines Gunner | -9/Materials Mutant | -9/Mines Mutant | -8/Materials Resources | -11 -10 -10 -9 -9 -8 ----------- Run | Yrd Mat Min Mat Min Mat Matter Collected 625 | 213 77 140 115 41 39 Remotely . | . . . . . . Salvage Created 765 | . 155 40 420 111 39 Parts 42 | . 11 4 24 3 . Haulers Intercepted . | . . . . . . Recyclers Shooed 2 | . . . 2 . . Parts Field Recycled . | . . . . . . Retrieved Matter . | . . . . . . Parts Self-Destructed . | . . . . . . Prevented . | . . . . . . Kills | -11 -10 -10 -9 -9 -8 ------- Run | Yrd Mat Min Mat Min Mat Combat Hostiles Destroyed 23 | . 3 3 9 7 1 Guns 7 | . 3 3 1 . . Cannons 16 | . . . 8 7 1 Classes Destroyed 7 | . 3 1 1 2 . Tunneler 1 | . . . . 1 . Operator 1 | . 1 . . . . Watcher 2 | . 1 . 1 . . Swarmer 3 | . . 3 . . . Grunt 11 | . 3 . 8 . . Sentry 2 | . . . 1 . 1 Assembled 7 | . . . . 7 . Best Kill Streak 5 | . 2 5 4 3 1 Combat Bots Only 3 | . 1 3 3 3 1 Max Kills in Single Turn 2 | . 1 2 1 2 1 Gunslinging 1 | . . 1 . . . Exploded . | . . . . . . Melee . | . . . . . . Uniques/NPCs Destroyed . | . . . . . . Combat | -11 -10 -10 -9 -9 -8 -------- Run | Yrd Mat Min Mat Min Mat Hostile Shots Fired 213 | . 22 8 59 13 111 Missed 53 | . 6 . 15 2 30 Damage Taken 2400 | . 200 58 563 228 1351 Core 823 | . 82 6 74 89 572 Absorbed by Shields . | . . . . . . Core Remaining (%) 74 | 100 . 64 . 59 . Volleys Fired 74 | . 22 3 29 12 8 Largest 3 | . 2 2 3 2 2 Hottest 156 | . 40 40 156 136 136 Shots Fired 153 | . 44 6 65 22 16 Gun 79 | . 44 6 29 . . Cannon 74 | . . . 36 22 16 Launcher . | . . . . . . Special . | . . . . . . Kinetic 85 | . 44 6 29 . 6 Thermal 68 | . . . 36 22 10 Explosive . | . . . . . . Electromagnetic . | . . . . . . Robot Hit Streak 8 | . 5 3 8 5 2 Robot Miss Streak 3 | . 3 2 3 3 3 Penetration Max . | . . . . . . Secondary Targets 2 | . . 2 . . . Max Gunslinging Chain 1 | . . 1 . . . Shots Hit Robots 86 | . 23 4 37 11 11 Core Hits 42 | . 10 3 14 8 7 Critical Kills . | . . . . . . Critical Parts Destroyed 1 | . . . 1 . . Critical Strikes 1 | . . . 1 . . Destroy 1 | . . . 1 . . Melee Attacks . | . . . . . . Impact . | . . . . . . Slashing . | . . . . . . Piercing . | . . . . . . Sneak Attacks . | . . . . . . Combat Hostiles . | . . . . . . Follow-up Attacks . | . . . . . . Damage Inflicted 1549 | . 293 54 723 266 213 Guns 547 | . 293 54 200 . . Cannons 988 | . . . 513 266 209 Explosions . | . . . . . . Melee . | . . . . . . Ramming 14 | . . . 10 . 4 Kinetic 636 | . 293 54 200 . 89 Thermal 899 | . . . 513 266 120 Explosive . | . . . . . . Electromagnetic . | . . . . . . Impact . | . . . . . . Slashing . | . . . . . . Piercing . | . . . . . . Highest Corruption 1 | . . . 1 1 . Average Corruption 1 | . . . 1 1 . Corruption Purged . | . . . . . . Corruption Blocked . | . . . . . . Effects 2 | . . . . 2 . Matter Fused 1 | . . . . 1 . Energy Discharges 1 | . . . . 1 . Overload Shots . | . . . . . . Overflow Damage . | . . . . . . Projectiles . | . . . . . . Explosions . | . . . . . . Melee . | . . . . . . Knockbacks . | . . . . . . Impact . | . . . . . . Kinetic . | . . . . . . Secondary . | . . . . . . Self-Inflicted Damage 7 | . . . 5 . 2 Shots . | . . . . . . Rammed 4 | . . . 2 . 2 Targets Rammed 4 | . . . 2 . 2 Kicked . | . . . . . . Crushed . | . . . . . . Highest Temperature 430 | . 20 . 430 276 102 Average Temperature 161 | . 6 . 216 103 35 Received Heat Transfer 948 | . 129 . 306 . 513 Effects 4 | . . . 4 . . Shutdowns 4 | . . . 4 . . Siege Activations . | . . . . . . Robots Corrupted . | . . . . . . Combat Hostiles . | . . . . . . Parts Fried . | . . . . . . Impact Corruptions . | . . . . . . Robots Melted . | . . . . . . Combat Hostiles . | . . . . . . Parts Melted . | . . . . . . Heat Transferred 1628 | . . . 925 481 222 Parts Sabotaged . | . . . . . . Parts Stolen . | . . . . . . Parts Stripped . | . . . . . . Power Chain Reactions . | . . . . . . Alert | -11 -10 -10 -9 -9 -8 ------- Run | Yrd Mat Min Mat Min Mat Peak Influence 302 | . 170 136 302 163 151 Initial 113 | . . 66 52 113 51 Average 116 | . 54 134 188 137 106 Maximum Alert Level 1 | . . . 1 . . Low Security (%) 89 | 100 100 100 52 100 100 Level 1 10 | . . . 47 . . Level 2 . | . . . . . . Level 3 . | . . . . . . Level 4 . | . . . . . . Level 5 . | . . . . . . High Security . | . . . . . . Max Security . | . . . . . . Squads Dispatched 4 | . 2 . 1 . 1 Investigation 3 | . 1 . 1 . 1 Extermination . | . . . . . . Reinforcement 1 | . 1 . . . . Assault . | . . . . . . Garrison . | . . . . . . Intercept . | . . . . . . Searches Triggered . | . . . . . . Construction Impeded . | . . . . . . Haulers Reinforced . | . . . . . . Active Scanning Responses . | . . . . . . Cargo Convoy Interrupts . | . . . . . . Stealth | -11 -10 -10 -9 -9 -8 --------- Run | Yrd Mat Min Mat Min Mat Distress Signals 4 | . 1 . 2 . 1 Communications Jammed . | . . . . . . Distress Signals . | . . . . . . Times Spotted 41 | . 10 2 14 7 8 Peak Tracking Total 6 | . 4 2 6 3 6 Tactical Retreats 4 | . 1 . . . 3 Traps | -11 -10 -10 -9 -9 -8 ------- Run | Yrd Mat Min Mat Min Mat Traps Triggered 1 | . . . . . 1 Indirectly . | . . . . . . Trap Hack Attempts . | . . . . . . Triggered . | . . . . . . Disarmed . | . . . . . . Reprogrammed . | . . . . . . Reused . | . . . . . . Traps Extracted . | . . . . . . Installed . | . . . . . . Triggered . | . . . . . . Machines | -11 -10 -10 -9 -9 -8 ---------- Run | Yrd Mat Min Mat Min Mat Machines Disabled 3 | . . . . 3 . Max in Single Turn 1 | . . . . 1 . Machines Repaired . | . . . . . . Machines Dismantled . | . . . . . . Machines Sabotaged . | . . . . . . Overloaded Fab Kills . | . . . . . . Hacking | -11 -10 -10 -9 -9 -8 --------- Run | Yrd Mat Min Mat Min Mat Machines Accessed 8 | . 3 . 3 . 2 Terminals 6 | . 2 . 3 . 1 Fabricators . | . . . . . . Repair Stations . | . . . . . . Recycling Units 1 | . 1 . . . . Scanalyzers 1 | . . . . . 1 Garrison Access . | . . . . . . Total Hacks 32 | . 14 . 11 . 7 Successful 22 | . 10 . 7 . 5 Failed 10 | . 4 . 4 . 2 Catastrophic 1 | . . . 1 . . Database Lockouts . | . . . . . . Manual 1 | . . . . . 1 Terminals 22 | . 6 . 11 . 5 Fabricators . | . . . . . . Repair Stations . | . . . . . . Recycling Units 8 | . 8 . . . . Scanalyzers 2 | . . . . . 2 Garrison Access . | . . . . . . Terminal Hacks 14 | . 4 . 7 . 3 Record 12 | . 4 . 6 . 2 Prototype ID Bank 1 | . . . . . 1 Zone Layout 1 | . . . 1 . . Fabricator Hacks . | . . . . . . Repair Station Hacks . | . . . . . . Recycling Unit Hacks 6 | . 6 . . . . Recycle Component 3 | . 3 . . . . Process 1 | . 1 . . . . Report Inventory 1 | . 1 . . . . Retrieve Matter 1 | . 1 . . . . Scanalyzer 2 | . . . . . 2 Insert Component 1 | . . . . . 1 Analyze 1 | . . . . . 1 Garrison Access Hacks . | . . . . . . Unauthorized Hacks . | . . . . . . Terminals . | . . . . . . Fabricators . | . . . . . . Repair Stations . | . . . . . . Recycling Units . | . . . . . . Scanalyzers . | . . . . . . Garrison Access . | . . . . . . Data Cores Recovered . | . . . . . . Used . | . . . . . . Hacking Detections 8 | . 3 . 3 . 2 Full Trace Events 6 | . 2 . 3 . 1 Feedback Events 1 | . . . 1 . . Corruption 1 | . . . 1 . . Feedback Blocked . | . . . . . . Robot Schematics Acquired . | . . . . . . Robots Built . | . . . . . . Authchips . | . . . . . . Time . | . . . . . . Total Robot Build Rating . | . . . . . . Part Schematics Acquired 1 | . . . . . 1 Parts Built . | . . . . . . Authchips . | . . . . . . Time . | . . . . . . Total Part Build Rating . | . . . . . . Parts Repaired . | . . . . . . Time . | . . . . . . Parts Recycled 3 | . 3 . . . . Recycled Matter . | . . . . . . Retrieved Matter . | . . . . . . Retrieved Components . | . . . . . . Parts Scanalyzed 1 | . . . . . 1 Part Schematics Acquired 1 | . . . . . 1 Parts Damaged . | . . . . . . Bothacking | -11 -10 -10 -9 -9 -8 ------------ Run | Yrd Mat Min Mat Min Mat Used RIF Installer . | . . . . . . Robots Hacked . | . . . . . . Non-combat . | . . . . . . Combat . | . . . . . . Robot Hacks Applied . | . . . . . . Relay Couplers Released . | . . . . . . Fabnet Peak Effective % . | . . . . . . Robots Rewired . | . . . . . . Allies Hacked . | . . . . . . Hacks Repelled . | . . . . . . Allies | -11 -10 -10 -9 -9 -8 -------- Run | Yrd Mat Min Mat Min Mat Total Allies 2 | . . . . 2 . Largest Group 2 | . . . . 2 1 Highest-Rated Group 39 | . . . . 39 8 Highest-Rated Ally 31 | . . . . 31 8 Total Orders . | . . . . . . Ally Attacks 4 | . . . . 4 . Total Damage 63 | . . . . 63 . Kills 1 | . . . . 1 . Allies Corrupted . | . . . . . . Allies Melted . | . . . . . . Intel | -11 -10 -10 -9 -9 -8 ------- Run | Yrd Mat Min Mat Min Mat Robot Analysis Total . | . . . . . . Derelict Logs Recovered 1 | . . 1 . . . Drone Launches . | . . . . . . Drone Recoveries . | . . . . . . Exploration | -11 -10 -10 -9 -9 -8 ------------- Run | Yrd Mat Min Mat Min Mat Turns Passed 1137 | 64 234 166 245 175 253 Spaces Moved 750 | 68 184 165 142 84 107 Core 67 | 30 . . . . 37 Treads . | . . . . . . Legs . | . . . . . . Wheels 566 | 38 184 165 107 31 41 Hover 117 | . . . 35 53 29 Flight . | . . . . . . Fastest Speed 50 | 50 80 95 95 95 95 Average Speed 105 | 66 85 95 100 132 165 Slowest Speed 450 | 80 95 95 116 240 450 Overloaded Moves . | . . . . . . Propulsion Burnouts . | . . . . . . Robots Hopped . | . . . . . . Cave-ins Triggered . | . . . . . . Exploration Rate (%) 22 | 4 35 44 14 24 13 Regions Visited 5 Branch Regions 2 Pre-discovered Areas . | . . . . . . Known Exits Taken . | . . . . . . Unknown Exits Taken 5 | 1 1 1 1 1 . Scrap Searched 1 | . . 1 . . . Spaces Dug . | . . . . . . Terrain Destroyed . | . . . . . . Melee . | . . . . . . Projectile . | . . . . . . AOE . | . . . . . . Terrain Rammed . | . . . . . . Walls Destroyed . | . . . . . . Machines Disabled . | . . . . . . Actions | -11 -10 -10 -9 -9 -8 --------- Run | Yrd Mat Min Mat Min Mat Total 952 | 85 216 168 191 126 166 Wait 70 | . . . 9 21 40 Move 745 | 67 183 164 141 83 107 Hop . | . . . . . . Pick Up 29 | 10 8 1 3 4 3 Fast Attach 5 | 2 1 . . . 2 Attach 17 | 5 . . 6 4 2 Detach 3 | 1 . . 1 1 . Swap . | . . . . . . Drop 5 | . 2 . . 1 2 Fire 74 | . 22 3 29 12 8 Melee . | . . . . . . Ram 4 | . . . 2 . 2 Kick . | . . . . . . Crush . | . . . . . . Escape Stasis . | . . . . . . Rewire . | . . . . . . Trap . | . . . . . . Miscellaneous . | . . . . . . Route ------- -11/Scrapyard -10/Materials -10/Mines (discovered 2 exits: *Mat x2) -9/Materials (discovered 2 exits: Mat / [*Min]) -9/Mines -8/Materials History --------- Turn | Location | Event 3 | -11/Scrapyard | Discovered new exit (range 14) 65 | -11/Scrapyard | Entered Materials 290 | -10/Materials | Discovered new exit (range 9) 299 | -10/Materials | Entered Mines 305 | -10/Mines | Build established: Mutant 314 | -10/Mines | Learned Materials trap positions 343 | -10/Mines | Found a damaged Exp. Sensor Array with a note attached 345 | -10/Mines | Found Prototype Device 455 | -10/Mines | Discovered new exit (range 11) 455 | -10/Mines | Discovered new exit (range 12) 465 | -10/Mines | Entered Materials 465 | -9/Materials | Evolved 2 slots: Power x1, Weapon x1 466 | -9/Materials | Loaded intel: 21 trap records 564 | -9/Materials | Discovered new exit (range 17) 593 | -9/Materials | Discovered new exit (range 13) 681 | -9/Materials | Lost 3 parts (1p1n1w) 710 | -9/Materials | Entered Mines 711 | -9/Mines | Assembled infested the area 841 | -9/Mines | Discovered new exit (range 13) 885 | -9/Mines | Entered Materials 885 | -8/Materials | Accompanied by 1 ally 885 | -8/Materials | Evolved 2 slots: Propulsion x1, Utility x1 885 | -8/Materials | Identified Exp. Sensor Array 1098 | -8/Materials | Lost 7 parts (3n2u2w) 1112 | -8/Materials | Core integrity fell below 50% 1133 | -8/Materials | Core integrity fell below 20% 1138 | -8/Materials | Destroyed by Proton Bomb Trap Last Messages --------------- Critical hit (Destroy). Flak Cannon destroyed. Particle Cannon destroyed. K-01 Serf cleans the Nuclear Reactor. Sml. Storage Unit destroyed. K-01 Serf cleans the Nuclear Reactor. Slammed into K-01 Serf. K-01 Serf collects debris. Critical hit (Burn: +37). K-01 Serf collects debris. Critical hit (Burn: +37). K-01 Serf collects debris. U-05 Engineer builds a Door. Critical hit (Burn: +37). Triggered Proton Bomb Trap. A bubble of electromagnetic force engulfs the area. Proton Bomb Trap short circuited. A bubble of electromagnetic force engulfs the area. Map ----- +----------------------------------------------------+ | |#??????????????????????????????????????????????? | | #??????????????????????????????????????????????? | | #??????????????????????????????????????????????? | | #??????????????????????????????????????????????? | | ###??????????????????????????????????????????????? | | #????????????????????????????????????????????????? | | #????????????????????????????????????????????????? | | #????????????????????????????????????????????????? | | #????????????????????????????????????????????????? | | #????????????????????????????????????????????????? | | ###??????????????????????????????????????????????? | | #????????#?????????????????????????????????????? | | #??????? #?????????????????????????????????????? | | #??????? #?????????????????????????????????????? | | #??????? #?????????????????????????????????????? | | " #??????? #?????????????????????????????????????? | | ""#??????=]#?????????????????????????????????????? | | S"#??????= #?????????????????????????????????????? | | #??????] #?????????????????????????????????????? | | ###?????? #?????????????????????????????????????? | | ???????? #?????????????????????????????????????? | | ???????? #?????????????????? #?????????????????? | | ???????? ???????###+###???? #?????????????????? | | ########/######k### ####k #?????????????????? | | Y #?????????????????? | | g Y @ #?????????????????? | | #?????????????????? | | ################## ########?????????????????? | | #????????????????## ##????????????????????????? | | #?????????????????# #?????????????????????????? | | +#?????????????????# #?????????????????????????? | | ?????????????????# #?????????????????????????? | | ?????????????????# #?????????????????????????? | | ?????????????????# #?????????????????????????? | | ""????????????????# #?????????????????????????? | | """????????????????# #?????????????????????????? | | """????????????????# #?????????????????????????? | | "??????????????????# #?????????????????????????? | | ???????????????????# +?????????????????????????? | | ???????????????????# #?????????????????????????? | | ???????????????????? ??????????????????????????? | | ?????????????????????????????????????????????????? | | ?????????????????????????????????????????????????? | | ?????????????????????????????????????????????????? | | ?????????????????????????????????????????????????? | | ?????????????????????????????????????????????????? | | ?????????????????????????????????????????????????? | | ?????????????????????????????????????????????????? | | ?????????????????????????????????????????????????? | | ?????????????????????????????????????????????????? | +----------------------------------------------------+ Best States ------------- Heat Dissipation 31 Energy Generation 17 Energy Capacity 415 Matter Stores 300 Matter Capacity 300 Sight Range 16 Robot Scan Range 20 Terrain Scan Density 10 Evasion (%) 50 Item Schematics ----------------- Hrd. Medium Armor Plating | -8/Materials | Scanalyzed Robot Schematics ------------------ None Fabricated ------------ Nothing Alien Tech Used ----------------- None Achievements -------------- I Survived The Infestation Challenges ------------ None Game ------ Seed LightningCoolingHammer Manual? 0 Play Time 00:32:43 Cumulative 3.8 hours Start 2024.10.22 @ 22:42:16 End 2024.10.23 @ 19:51:37 Sessions 3 Manual Loads 0 Difficulty Rogue Special Mode None Game No. 11 Rogue 8 Adventurer 1 Explorer 2 Win Type - Total 0 Types 0/0/0/0/0/0/0/0/0 Lore% 8 Gallery% 12 Achievement% 14 Wizard Run 0 Options --------- Layout 2 ASCII 0 Keyboard 0 Movement Mouse Keybinds 0 Fullscreen 1 Font 48/Smallcaps Map View 50x44 Zoom Use 1% Tactical HUD 0 Map Filters NONE Filters NONE Steam 1 RUN: 827a4117-0746-4103-a778-6317dd7c3ef4